bitfinex-derivatives/quotes_BTCF0:USTF0_20260131
["timestamp","ask_amount","ask_price","bid_price","bid_amount"]
[1769870816569,0.28272692,81267.0,81218.0,0.29757699]
[1769870816769,0.28272692,81265.0,81218.0,0.29757699]
[1769870816967,0.28272692,81263.0,81218.0,0.29757699]
[1769870817169,0.28272692,81261.0,81218.0,0.29757699]
[1769870817475,0.28272692,81261.0,81223.0,0.29757699]
[1769870818069,0.12309283,81260.0,81223.0,0.29757699]
[1769870818672,0.28272692,81289.0,81235.0,0.29757699]
[1769870818880,0.28272692,81289.0,81220.0,0.39637583]
[1769870818881,0.28272692,81287.0,81237.0,0.29757699]
[1769870819069,0.28272692,81270.0,81237.0,0.29757699]
[1769870819374,0.28272692,81279.0,81230.0,0.012329]
[1769870819576,0.28272692,81279.0,81234.0,0.29757699]
[1769870819774,0.12307162,81270.0,81234.0,0.29757699]
[1769870819974,7.962e-05,81269.0,81234.0,0.29757699]
[1769870821177,0.28272692,81268.0,81234.0,0.29757699]
[1769870821366,7.962e-05,81269.0,81226.0,0.29757699]
[1769870821567,7.962e-05,81269.0,81238.0,0.29757699]
[1769870821775,0.0998,81271.0,81245.0,0.29757699]
[1769870821977,0.0998,81271.0,81239.0,0.29757699]
[1769870822478,0.0998,81271.0,81233.0,0.012329]
[1769870822479,0.28272692,81269.0,81231.0,0.0998]
[1769870823078,0.12306934,81268.0,81231.0,0.0998]
[1769870823275,0.40579626,81268.0,81234.0,0.001]
[1769870823572,0.0998,81271.0,81234.0,0.001]
[1769870823573,0.28272692,81267.0,81234.0,0.001]
[1769870823969,0.28272692,81266.0,81234.0,0.001]
[1769870824368,0.28272692,81264.0,81216.0,0.29757699]
[1769870825073,0.28272692,81264.0,81205.0,0.0998]
[1769870825074,0.28272692,81262.0,81206.0,0.29757699]
[1769870825778,0.28272692,81260.0,81206.0,0.29757699]
[1769870826079,0.28272692,81258.0,81209.0,0.29757699]
[1769870826577,0.28272692,81258.0,81205.0,0.0998]
[1769870827075,0.27549872,81256.0,81206.0,0.28812948]
[1769870827278,0.12310192,81257.0,81225.0,0.28812948]
[1769870827473,0.09984,81263.0,81229.0,0.28812948]
[1769870827669,0.09984,81263.0,81233.0,0.28812948]
[1769870827875,0.09984,81284.0,81244.0,0.28812948]
[1769870828171,0.12310571,81285.0,81248.0,0.28812948]
[1769870828368,0.27549872,81284.0,81237.0,0.28812948]
[1769870828770,0.39855065,81283.0,81237.0,0.28812948]
[1769870828971,0.27549872,81282.0,81237.0,0.28812948]
[1769870829473,0.27549872,81280.0,81237.0,0.28812948]
[1769870830180,0.27549872,81278.0,81237.0,0.28812948]
[1769870830375,0.27549872,81276.0,81220.0,0.28812948]
[1769870830568,0.27549872,81274.0,81220.0,0.28812948]
[1769870830764,0.27549872,81272.0,81220.0,0.28812948]
[1769870830978,0.27549872,81270.0,81211.0,0.09984]
[1769870831179,0.27549872,81268.0,81212.0,0.28812948]
[1769870831371,0.27549872,81266.0,81212.0,0.28812948]
[1769870831571,0.06635299,81288.0,81212.0,0.28812948]
[1769870831572,0.27549872,81264.0,81212.0,0.28812948]
[1769870831772,0.27549872,81262.0,81211.0,0.09984]
[1769870831967,0.27549872,81260.0,81200.0,0.28812948]
[1769870832275,0.27549872,81258.0,81201.0,0.28827149]
[1769870832478,0.27549872,81256.0,81201.0,0.28827149]
[1769870832678,0.27549872,81254.0,81201.0,0.28827149]
[1769870832877,0.27549872,81252.0,81201.0,0.28827149]
[1769870833179,0.27549872,81250.0,81212.0,0.001]
[1769870833375,0.13325228,81249.0,81212.0,0.001]
[1769870833570,0.27549872,81248.0,81212.0,0.28912948]
[1769870833776,0.27549872,81248.0,81173.0,0.3246]
[1769870833777,0.27549872,81246.0,81175.0,0.28812948]
[1769870833975,0.27549872,81244.0,81168.0,0.28812948]
[1769870834177,0.27549872,81242.0,81169.0,0.28812948]
[1769870834479,0.27549872,81240.0,81169.0,0.28812948]
[1769870834679,0.27549872,81238.0,81169.0,0.28812948]
[1769870834979,0.00013845,81171.0,81169.0,0.28812948]
[1769870835175,0.09984,81202.0,81155.0,0.012341]
[1769870835374,0.09984,81202.0,81159.0,0.00014201]
[1769870835678,0.09984,81202.0,81164.0,0.00014201]
[1769870835881,0.09984,81202.0,81163.0,0.00014201]
[1769870835882,0.37533872,81202.0,81163.0,0.00014201]
[1769870836082,0.27549872,81200.0,81145.0,0.012342]
[1769870836282,0.27549872,81200.0,81149.0,0.00014201]
[1769870836777,0.09984,81202.0,81149.0,0.00014201]
[1769870836778,0.27549872,81198.0,81149.0,0.00014201]
[1769870836977,0.27549872,81198.0,81136.0,0.00015179]
[1769870837174,0.27549872,81198.0,81142.0,0.28827149]
[1769870837374,0.27549872,81196.0,81142.0,0.28812948]
[1769870837885,0.27549872,81194.0,81143.0,0.00014201]
[1769870838072,0.27549872,81194.0,81142.0,0.28812948]
[1769870838279,0.27549872,81194.0,81144.0,0.00014201]
[1769870838479,0.12319822,81193.0,81144.0,0.00014201]
[1769870838780,0.27549872,81192.0,81145.0,0.00014201]
[1769870838969,0.27549872,81192.0,81142.0,0.28812948]
[1769870839174,0.27549872,81192.0,81145.0,0.28812948]
[1769870839384,0.27549872,81192.0,81156.0,0.00014201]
[1769870839385,0.12320126,81191.0,81156.0,0.00014201]
[1769870839586,0.12320126,81191.0,81152.0,0.28827149]
[1769870839780,0.27549872,81190.0,81152.0,0.28812948]
[1769870839980,0.27549872,81190.0,81148.0,0.1232005]
[1769870840182,0.27549872,81190.0,81148.0,0.28812948]
[1769870840378,0.1232005,81189.0,81150.0,0.00014201]
[1769870840883,0.1232005,81189.0,81136.0,0.00015179]
[1769870840884,0.27549872,81201.0,81160.0,0.00014201]
[1769870841079,0.27549872,81201.0,81160.0,0.28812948]
[1769870841281,0.27549872,81200.0,81161.0,0.00014201]
[1769870841681,0.27549872,81200.0,81162.0,0.00014201]
[1769870841881,0.12318229,81199.0,81161.0,0.00014201]
[1769870842179,0.09984,81202.0,81166.0,0.28812948]
[1769870842389,0.27549872,81224.0,81169.0,0.28812948]
[1769870842578,0.27549872,81222.0,81171.0,0.28812948]
[1769870842882,0.12317698,81213.0,81181.0,0.28812948]
[1769870843087,0.0987262,81243.0,81170.0,0.12317698]
[1769870843088,0.27549872,81218.0,81170.0,0.12317698]
[1769870843272,0.27549872,81218.0,81162.0,0.28812948]
[1769870843477,0.27549872,81218.0,81169.0,0.28812948]
[1769870843678,0.27549872,81218.0,81169.0,0.28827149]
[1769870843890,0.27549872,81216.0,81157.0,0.28812948]
[1769870844078,0.27549872,81216.0,81157.0,0.28807948]
[1769870844579,0.27549872,81214.0,81157.0,0.28807948]
[1769870844774,0.27549872,81214.0,81154.0,0.09988]
[1769870845179,0.27549872,81212.0,81154.0,0.09988]
[1769870845389,0.27549872,81212.0,81155.0,0.12317318]
[1769870845578,0.09988,81219.0,81170.0,0.00014201]
[1769870845785,0.12317849,81211.0,81174.0,0.012338]
[1769870845981,0.09988,81219.0,81168.0,0.01248101]
[1769870846180,0.09988,81219.0,81176.0,0.28812948]
[1769870846375,0.27549872,81217.0,81176.0,0.28812948]
[1769870846575,0.27549872,81217.0,81177.0,0.00014201]
[1769870846786,0.09988,81219.0,81182.0,0.28812948]
[1769870846979,0.1231565,81216.0,81182.0,0.28812948]
[1769870847183,0.1231565,81216.0,81182.0,0.28827149]
[1769870847380,0.09988,81219.0,81185.0,9.201e-05]
[1769870847588,0.09988,81219.0,81182.0,0.28812948]
[1769870847783,0.39865294,81218.0,81183.0,9.201e-05]
[1769870848091,0.27549872,81217.0,81182.0,9.201e-05]
[1769870848387,0.27549872,81217.0,81183.0,9.201e-05]
[1769870848575,0.27549872,81217.0,81177.0,9.201e-05]
[1769870848776,0.27549872,81215.0,81177.0,9.201e-05]
[1769870848980,0.27549872,81215.0,81180.0,9.201e-05]
[1769870849176,0.27549872,81215.0,81179.0,9.201e-05]
[1769870849385,0.27549872,81213.0,81172.0,0.28812948]
[1769870849688,0.27549872,81213.0,81177.0,9.201e-05]
[1769870849888,0.27549872,81213.0,81180.0,9.201e-05]
[1769870850189,0.27549872,81211.0,81176.0,0.28822149]
[1769870850382,0.27549872,81211.0,81176.0,0.28812948]
[1769870850579,0.09988,81219.0,81176.0,0.28812948]
[1769870850787,0.09988,81219.0,81169.0,0.012339]
[1769870850788,0.27549872,81218.0,81179.0,0.28822149]
[1769870850990,0.27549872,81217.0,81179.0,0.28812948]
[1769870851191,0.27549872,81217.0,81180.0,9.201e-05]
[1769870851392,0.27549872,81217.0,81167.0,0.28822149]
[1769870851583,0.27549872,81215.0,81174.0,9.201e-05]
[1769870851790,0.27549872,81215.0,81156.0,0.28812948]
[1769870852087,0.27549872,81215.0,81160.0,0.41128446]
[1769870852290,0.27549872,81213.0,81160.0,0.41128446]
[1769870852494,0.27549872,81213.0,81161.0,0.28812948]
[1769870852785,0.27549872,81213.0,81162.0,0.28822149]
[1769870852989,0.27549872,81211.0,81167.0,0.28812948]
[1769870853489,0.27549872,81211.0,81155.0,0.28812948]
[1769870853692,0.12317318,81210.0,81159.0,9.201e-05]
[1769870853882,0.12317318,81210.0,81157.0,0.28812948]
[1769870854179,0.09988,81219.0,81171.0,0.28822149]
[1769870854383,0.25540894,81218.0,81160.0,0.28812948]
[1769870854587,0.09988,81219.0,81154.0,0.09988]
[1769870854588,0.13223955,81217.0,81154.0,0.09988]
[1769870854890,0.13223955,81216.0,81155.0,0.28812948]
[1769870855195,0.13223955,81215.0,81155.0,0.28812948]
[1769870855392,0.13223955,81214.0,81155.0,0.28812948]
[1769870855693,0.27549872,81212.0,81155.0,0.28812948]
[1769870855894,0.27549872,81210.0,81155.0,0.28812948]
[1769870856188,0.27549872,81208.0,81155.0,0.28812948]
[1769870856392,0.27549872,81208.0,81156.0,0.28822149]
[1769870856683,0.27549872,81208.0,81158.0,0.28812948]
[1769870856880,0.27226068,81206.0,81158.0,0.28812948]
[1769870857290,0.27226068,81206.0,81160.0,9.201e-05]
[1769870857489,0.12318077,81205.0,81160.0,9.201e-05]
[1769870857686,0.27226068,81204.0,81161.0,9.201e-05]
[1769870857884,0.27226068,81204.0,81161.0,0.27453694]
[1769870858091,0.27226068,81204.0,81164.0,9.201e-05]
[1769870858389,0.12317849,81203.0,81164.0,9.201e-05]
[1769870858692,0.39543917,81203.0,81165.0,9.201e-05]
[1769870858882,0.39543917,81203.0,81164.0,0.27453694]
[1769870859087,0.27226068,81203.0,81165.0,0.27444493]
[1769870859287,0.12317698,81202.0,81165.0,0.27444493]
[1769870859584,0.41147627,81234.0,81180.0,0.27444493]
[1769870859585,0.27226068,81213.0,81180.0,0.27444493]
[1769870859790,0.09992,81215.0,81185.0,9.201e-05]
[1769870859992,0.16871274,81215.0,81183.0,0.27444493]
[1769870860198,0.16871274,81215.0,81186.0,9.201e-05]
[1769870860583,0.12317773,81214.0,81188.0,9.201e-05]
[1769870860782,0.28317623,81213.0,81186.0,9.201e-05]
[1769870860978,0.28317623,81213.0,81176.0,9.201e-05]
[1769870861189,0.28317623,81213.0,81181.0,9.201e-05]
[1769870861487,0.28317623,81211.0,81181.0,9.201e-05]
[1769870861697,0.28317623,81211.0,81159.0,0.27665931]
[1769870862193,0.28317623,81209.0,81170.0,9.201e-05]
[1769870862392,0.28317623,81209.0,81168.0,9.201e-05]
[1769870862591,0.13138237,81208.0,81171.0,9.201e-05]
[1769870862793,0.28317623,81206.0,81166.0,9.201e-05]
[1769870863000,0.28317623,81206.0,81167.0,9.201e-05]
[1769870863194,0.28317623,81204.0,81171.0,9.201e-05]
[1769870863392,0.001,81214.0,81172.0,0.27665931]
[1769870863596,0.25463793,81213.0,81172.0,0.27675132]
[1769870863786,0.1314693,81212.0,81180.0,9.201e-05]
[1769870864099,0.25464097,81212.0,81181.0,9.201e-05]
[1769870864399,0.12317167,81212.0,81182.0,0.27675132]
[1769870864601,0.09992,81215.0,81182.0,0.27665931]
[1769870864788,0.09992,81215.0,81186.0,9.201e-05]
[1769870864988,0.12315801,81214.0,81186.0,9.201e-05]
[1769870865289,0.12315801,81214.0,81188.0,9.201e-05]
[1769870865596,0.001,81204.0,81187.0,9.201e-05]
[1769870865989,0.001,81204.0,81194.0,9.201e-05]
[1769870866304,0.12315801,81214.0,81192.0,9.201e-05]
[1769870866592,0.12315801,81214.0,81182.0,0.27665931]
[1769870866593,0.12315801,81214.0,81187.0,9.201e-05]
[1769870866987,0.12315801,81214.0,81182.0,0.27665931]
[1769870866988,0.12315801,81214.0,81190.0,9.201e-05]
[1769870867294,0.12315801,81214.0,81182.0,0.27665931]
[1769870867295,0.12315801,81214.0,81188.0,9.201e-05]
[1769870867484,0.12315801,81214.0,81156.0,0.30492309]
[1769870867485,0.28317623,81231.0,81195.0,0.27665931]
[1769870867684,0.35999872,81257.0,81195.0,0.27665931]
[1769870867685,0.13150835,81230.0,81195.0,0.27665931]
[1769870867886,0.13150835,81230.0,81172.0,0.012338]
[1769870867887,0.40632742,81233.0,81199.0,0.27665931]
[1769870868088,0.28317623,81231.0,81181.0,0.27665931]
[1769870868292,0.28317623,81229.0,81173.0,0.12315119]
[1769870868589,0.12315119,81232.0,81171.0,0.012338]
[1769870868590,0.28317623,81227.0,81175.0,0.27665931]
[1769870868895,0.13150639,81228.0,81175.0,0.27665931]
[1769870868896,0.28317623,81225.0,81175.0,0.27665931]
[1769870869104,0.28317623,81223.0,81179.0,9.201e-05]
[1769870869397,0.28317623,81223.0,81165.0,0.28899831]
[1769870869585,0.28317623,81223.0,81174.0,9.201e-05]
[1769870869794,0.28317623,81223.0,81167.0,9.201e-05]
[1769870869993,0.28317623,81221.0,81167.0,9.201e-05]
[1769870870185,0.12315119,81222.0,81160.0,0.01234]
[1769870870186,0.12315119,81222.0,81176.0,0.012337]
[1769870870388,0.28317623,81229.0,81186.0,0.27675132]
[1769870870703,0.28317623,81227.0,81186.0,0.27665931]
[1769870870895,0.28317623,81227.0,81192.0,9.201e-05]
[1769870871090,0.28317623,81227.0,81195.0,9.201e-05]
[1769870871285,0.12315422,81226.0,81187.0,9.201e-05]
[1769870871608,0.28317623,81225.0,81149.0,0.27665931]
[1769870871897,0.28317623,81225.0,81150.0,0.12314285]
[1769870872394,0.28317623,81216.0,81139.0,0.27665931]
[1769870872587,0.28317623,81210.0,81126.0,0.27665931]
[1769870872792,0.51695513,81206.0,81126.0,0.27665931]
[1769870873091,0.28317623,81203.0,81126.0,0.27665931]
[1769870873601,0.28317623,81202.0,81126.0,0.27665931]
[1769870874092,0.28317623,81200.0,81126.0,0.27665931]
[1769870874690,0.28317623,81198.0,81126.0,0.27665931]
[1769870875290,0.28317623,81194.0,81117.0,0.09992]
[1769870875495,0.28317623,81191.0,81117.0,0.09992]
[1769870875894,0.12320581,81190.0,81117.0,0.09992]
[1769870876092,0.28317623,81189.0,81116.0,0.27665931]
[1769870876292,0.2337789,81187.0,81106.0,0.27665931]
[1769870876594,0.28317623,81185.0,81106.0,0.27665931]
[1769870876897,0.23317623,81185.0,81106.0,0.27665931]
[1769870877086,0.46496,81184.0,81106.0,0.27665931]
[1769870877287,0.5881939,81184.0,81107.0,0.012348]
[1769870877491,0.46496,81184.0,81110.0,0.27665931]
[1769870877792,0.12323542,81183.0,81113.0,0.27665931]
[1769870878300,6.201e-05,81119.0,81114.0,0.012347]
[1769870878602,0.09992,81157.0,81115.0,0.27665931]
[1769870878900,0.09992,81157.0,81085.0,0.061758]
[1769870878901,0.09992,81157.0,81118.0,0.27665931]
[1769870880598,0.09992,81157.0,81118.0,0.28900531]
[1769870881000,0.28317623,81164.0,81125.0,0.27665931]
[1769870881592,0.09992,81165.0,81140.0,0.17978432]
[1769870881806,0.12323694,81163.0,81130.0,0.17978432]
[1769870881995,0.28317623,81162.0,81130.0,0.17978432]
[1769870882392,0.28317623,81160.0,81130.0,0.17978432]
[1769870882992,0.12323618,81159.0,81130.0,0.17978432]
[1769870883506,0.28317623,81158.0,81130.0,0.17978432]
[1769870884197,0.28317623,81156.0,81130.0,0.17978432]
[1769870884398,0.28317623,81156.0,81107.0,0.27665931]
[1769870884600,0.28317623,81156.0,81120.0,0.17978432]
[1769870884794,0.49976,81165.0,81120.0,0.17978432]
[1769870884795,0.28317623,81154.0,81120.0,0.17978432]
[1769870885396,0.28317623,81152.0,81120.0,0.17978432]
[1769870885603,0.57607112,81184.0,81129.0,0.27665931]
[1769870885904,0.12324985,81176.0,81142.0,0.17978432]
[1769870886096,0.28317623,81174.0,81142.0,0.17978432]
[1769870886296,0.28317623,81172.0,81110.0,0.27665931]
[1769870886491,0.28317623,81170.0,81120.0,0.17978432]
[1769870886802,0.09996,81183.0,81150.0,0.17978432]
[1769870887105,0.12324225,81170.0,81150.0,0.17978432]
[1769870887302,0.29358201,81181.0,81141.0,0.29545169]
[1769870887506,0.09996,81182.0,81160.0,0.17978432]
[1769870887800,0.09610164,81182.0,81161.0,0.29545169]
[1769870888497,0.09610164,81182.0,81160.0,0.17978432]
[1769870889094,0.09610164,81182.0,81160.0,0.47523601]
[1769870889497,0.09610164,81182.0,81161.0,0.29545169]
[1769870890200,0.06765605,81212.0,81161.0,0.29545169]
[1769870890405,0.29358201,81217.0,81190.0,0.17978432]
[1769870890610,0.1231967,81210.0,81190.0,0.17978432]
[1769870890804,0.29358201,81217.0,81180.0,0.29545169]
[1769870891003,0.1231474,81216.0,81170.0,0.17978432]
[1769870891203,0.29358201,81215.0,81170.0,0.17978432]
[1769870891404,0.29358201,81215.0,81170.0,0.47523601]
[1769870891701,0.29358201,81213.0,81170.0,0.47523601]
[1769870892103,0.29358201,81213.0,81171.0,0.29545169]
[1769870892301,0.12316408,81212.0,81171.0,0.29545169]
[1769870892603,0.41674609,81212.0,81171.0,0.29545169]
[1769870892805,0.29358201,81211.0,81171.0,0.29545169]
[1769870893200,0.1231656,81210.0,81171.0,0.29545169]
[1769870894207,0.1231656,81210.0,81151.0,0.29545169]
[1769870894208,0.29358201,81209.0,81151.0,0.29545169]
[1769870894517,0.29358201,81207.0,81151.0,0.29545169]
[1769870894805,0.29358201,81205.0,81151.0,0.29545169]
[1769870894996,0.29358201,81203.0,81151.0,0.29545169]
[1769870895403,0.29358201,81201.0,81151.0,0.29545169]
[1769870895607,0.29358201,81199.0,81151.0,0.29545169]
[1769870895812,0.29358201,81197.0,81151.0,0.29545169]
[1769870896207,0.29358201,81197.0,81141.0,0.29545169]
[1769870896408,0.29358201,81195.0,81141.0,0.29545169]
[1769870897109,0.29358201,81193.0,81141.0,0.29545169]
[1769870897910,0.29358201,81191.0,81141.0,0.29545169]
[1769870898310,0.29358201,81191.0,81143.0,0.29545169]
[1769870898512,0.12320277,81190.0,81143.0,0.29545169]
[1769870898709,0.12320277,81190.0,81150.0,0.29545169]
[1769870898911,0.09992,81206.0,81161.0,0.29545169]
[1769870899306,0.12320277,81197.0,81161.0,0.29545169]
[1769870899619,0.29358201,81205.0,81161.0,0.29545169]
[1769870899815,0.29358201,81204.0,81161.0,0.29545169]
[1769870900414,0.29358201,81202.0,81161.0,0.29545169]
[1769870900915,0.09992,81206.0,81170.0,0.17978432]
[1769870901114,0.09992,81206.0,81171.0,0.29545169]
[1769870901302,0.12318077,81202.0,81171.0,0.29545169]
[1769870901507,0.09992,81206.0,81171.0,0.29545169]
[1769870901906,0.06685441,81222.0,81176.0,0.29545169]
[1769870902108,0.09992,81221.0,81182.0,0.29545169]
[1769870902313,0.51667519,81221.0,81182.0,0.29545169]
[1769870902509,0.29358201,81220.0,81182.0,0.29545169]
[1769870903012,0.29358201,81220.0,81133.0,0.07420447]
[1769870903013,0.29358201,81218.0,81161.0,0.29545169]
[1769870903208,0.29358201,81216.0,81161.0,0.29545169]
[1769870903515,0.29358201,81216.0,81149.0,0.09992]
[1769870903516,0.29358201,81216.0,81170.0,0.17978432]
[1769870903711,0.12315043,81215.0,81171.0,0.29545169]
[1769870903902,0.09992,81221.0,81183.0,0.29545169]
[1769870904103,0.09992,81221.0,81190.0,0.17978432]
[1769870904310,0.09992,81221.0,81191.0,0.29545169]
[1769870905713,0.09992,81221.0,81193.0,0.29545169]
[1769870906212,0.09992,81221.0,81195.0,0.29545169]
[1769870907322,0.09992,81235.0,81200.0,0.29545169]
[1769870907908,0.29358201,81247.0,81177.0,0.012337]
[1769870907909,0.29358201,81247.0,81211.0,0.29545169]
[1769870908105,0.09992,81246.0,81211.0,0.29545169]
[1769870909013,0.09992,81246.0,81210.0,0.17978432]
[1769870909014,0.29358201,81244.0,81200.0,0.29545169]
[1769870909610,0.12310949,81243.0,81200.0,0.29545169]
[1769870909921,0.29358201,81242.0,81200.0,0.29545169]
[1769870910419,0.29358201,81242.0,81200.0,0.29645169]
[1769870910725,0.12311935,81241.0,81202.0,0.29545169]
[1769870910916,0.09992,81246.0,81202.0,0.29545169]
[1769870911316,0.12312086,81245.0,81202.0,0.30778569]
[1769870911722,0.09992,81246.0,81207.0,0.29545169]
[1769870912318,0.09992,81246.0,81221.0,0.29545169]
[1769870913725,0.09992,81246.0,81209.0,0.29545169]
[1769870914020,0.09992,81246.0,81210.0,0.29545169]
[1769870914218,0.29358201,81245.0,81210.0,0.29545169]
[1769870914422,0.29358201,81245.0,81221.0,0.001]
[1769870914423,0.29358201,81244.0,81221.0,0.001]
[1769870914622,0.29358201,81244.0,81200.0,0.47523601]
[1769870915020,0.29358201,81242.0,81200.0,0.47523601]
[1769870915222,0.29358201,81242.0,81210.0,0.001]
[1769870915712,0.29358201,81240.0,81210.0,0.001]
[1769870915908,0.29358201,81238.0,81200.0,0.001]
[1769870916219,0.29358201,81238.0,81201.0,0.29545169]
[1769870918810,0.36292,81239.0,81203.0,0.29805017]
[1769870919216,0.36292,81239.0,81209.0,0.29805017]
[1769870919721,0.65958727,81239.0,81201.0,0.12312314]
[1769870919928,0.29666727,81237.0,81199.0,0.29805017]
[1769870920130,0.29666727,81236.0,81199.0,0.29805017]
[1769870920626,0.2855601,81234.0,81199.0,0.29805017]
[1769870921317,0.09988,81237.0,81201.0,0.29887462]
[1769870921723,0.12312617,81236.0,81201.0,0.29887462]
[1769870922118,0.09988,81237.0,81210.0,0.17978432]
[1769870922315,0.09988,81237.0,81211.0,0.29887462]
[1769870923330,0.09988,81237.0,81205.0,0.012333]
[1769870923632,0.2855601,81236.0,81202.0,0.29887462]
[1769870924035,0.12312086,81235.0,81210.0,0.001]
[1769870924225,0.2855601,81234.0,81210.0,0.001]
[1769870924740,0.2855601,81234.0,81192.0,0.29887462]
[1769870925027,0.09988,81237.0,81192.0,0.29887462]
[1769870925028,0.2855601,81232.0,81202.0,0.001]
[1769870925526,0.2855601,81232.0,81200.0,0.29887462]
[1769870925736,0.12311935,81231.0,81201.0,0.29887462]
[1769870926032,0.001,81234.0,81201.0,0.29887462]
[1769870926428,0.001,81234.0,81202.0,0.012334]
[1769870926626,0.001,81234.0,81201.0,0.29887462]
[1769870926825,0.2855601,81232.0,81191.0,0.29887462]
[1769870927431,0.09988,81236.0,81180.0,0.17978432]
[1769870927432,0.2855601,81230.0,81180.0,0.29887462]
[1769870927623,0.2855601,81228.0,81180.0,0.29887462]
[1769870927822,0.2855601,81228.0,81167.0,0.012339]
[1769870927823,0.2855601,81226.0,81169.0,0.29887462]
[1769870928028,0.2855601,81224.0,81191.0,0.001]
[1769870928227,0.23464962,81243.0,81191.0,0.001]
[1769870928228,0.2855601,81242.0,81200.0,0.17978432]
[1769870928423,0.17978432,81280.0,81200.0,0.17978432]
[1769870928424,0.2855601,81240.0,81200.0,0.17978432]
[1769870928621,0.2855601,81240.0,81195.0,0.29887462]
[1769870928622,0.2855601,81238.0,81195.0,0.29887462]
[1769870928829,0.2855601,81236.0,81195.0,0.29887462]
[1769870929337,0.09988,81241.0,81201.0,0.31120862]
[1769870929529,0.09988,81241.0,81207.0,0.29887462]
[1769870929728,0.36276,81240.0,81207.0,0.29887462]
[1769870929934,0.46264,81240.0,81207.0,0.29887462]
[1769870930134,0.09988,81239.0,81207.0,0.29887462]
[1769870930322,0.09988,81239.0,81209.0,0.29887462]
[1769870930930,0.2855601,81260.0,81221.0,0.29887462]
[1769870931229,0.35720216,81259.0,81221.0,0.29887462]
[1769870931429,0.22299632,81259.0,81221.0,0.29887462]
[1769870931626,0.09988,81259.0,81221.0,0.29887462]
[1769870931826,0.003,81288.0,81220.0,0.17978432]
[1769870931827,0.2855601,81267.0,81231.0,0.29887462]
[1769870932138,0.09988,81266.0,81231.0,0.29887462]
[1769870933232,0.09988,81266.0,81220.0,0.17978432]
[1769870933233,0.2855601,81264.0,81220.0,0.47865894]
[1769870933440,0.2855601,81264.0,81220.0,0.29887462]
[1769870933644,0.09988,81266.0,81222.0,0.29887462]
[1769870933842,0.09988,81266.0,81227.0,0.29887462]
[1769870934039,0.09988,81266.0,81241.0,0.29887462]
[1769870934632,0.2855601,81286.0,81241.0,0.29887462]
[1769870934945,0.2855601,81284.0,81243.0,0.29887462]
[1769870935136,0.001,81266.0,81243.0,0.29887462]
[1769870935439,0.09988,81283.0,81246.0,0.29887462]
[1769870935834,0.09988,81283.0,81248.0,0.29887462]
[1769870936233,0.09988,81283.0,81250.0,0.29887462]
[1769870937037,0.09988,81283.0,81252.0,0.2739705]
[1769870937230,0.23464962,81322.0,81251.0,0.12305193]
[1769870937231,0.2855601,81324.0,81266.0,0.2739705]
[1769870937435,0.2855601,81322.0,81266.0,0.2739705]
[1769870937734,0.12305193,81307.0,81266.0,0.2739705]
[1769870938048,0.09984,81306.0,81266.0,0.2739705]
[1769870938344,0.2855601,81305.0,81266.0,0.2739705]
[1769870938640,0.4085704,81305.0,81266.0,0.2739705]
[1769870938838,0.3622,81304.0,81268.0,0.27284324]
[1769870939236,0.2855601,81326.0,81274.0,0.27284324]
[1769870939436,0.2855601,81324.0,81274.0,0.27284324]
[1769870939630,0.2855601,81315.0,81267.0,0.09984]
[1769870939830,0.2855601,81313.0,81263.0,0.27284324]
[1769870940542,0.12300274,81312.0,81274.0,0.001]
[1769870940841,0.2855601,81311.0,81274.0,0.001]
[1769870941147,0.46196,81310.0,81275.0,0.27100528]
[1769870941347,0.3854001,81309.0,81275.0,0.27100528]
[1769870941536,0.12301182,81313.0,81280.0,0.4507896]
[1769870941846,0.462,81312.0,81281.0,0.27100528]
[1769870942143,0.2855601,81311.0,81261.0,0.09984]
[1769870942333,0.2855601,81311.0,81264.0,0.28673376]
[1769870942839,0.2855601,81309.0,81264.0,0.28673376]
[1769870943540,0.2855601,81307.0,81264.0,0.28673376]
[1769870944134,0.2855601,81305.0,81264.0,0.28673376]
[1769870944731,0.2855601,81303.0,81264.0,0.28673376]
[1769870944941,0.2855601,81301.0,81253.0,0.28277908]
[1769870945137,0.2855601,81301.0,81250.0,0.0998]
[1769870945332,0.2855601,81299.0,81250.0,0.0998]
[1769870946042,0.2855601,81297.0,81251.0,0.28277908]
[1769870946238,0.2855601,81295.0,81251.0,0.28277908]
[1769870946632,0.12303982,81294.0,81251.0,0.28277908]
[1769870946845,0.2855601,81293.0,81251.0,0.28277908]
[1769870947045,0.2962021,81291.0,81250.0,0.0998]
[1769870947343,0.2962021,81291.0,81247.0,0.00010545]
[1769870947543,0.0998,81292.0,81247.0,0.00010545]
[1769870947544,0.2962021,81289.0,81247.0,0.00010545]
[1769870948245,0.2962021,81287.0,81247.0,0.00010545]
[1769870948944,0.0998,81292.0,81247.0,0.00010545]
[1769870948945,0.2962021,81285.0,81247.0,0.00010545]
[1769870949140,0.2962021,81285.0,81247.0,0.27054105]
[1769870949341,0.2962021,81285.0,81247.0,0.00010545]
[1769870949539,0.2962021,81283.0,81247.0,0.00010545]
[1769870949845,0.2962021,81281.0,81247.0,0.00010545]
[1769870950147,0.2962021,81279.0,81247.0,0.00010545]
[1769870950643,0.2962021,81277.0,81224.0,0.0998]
[1769870950837,0.2962021,81275.0,81224.0,0.0998]
[1769870951243,0.2962021,81273.0,81224.0,0.0998]
[1769870951542,0.2962021,81271.0,81214.0,0.0998]
[1769870951742,0.2962021,81269.0,81210.0,0.0998]
[1769870952055,0.2962021,81269.0,81202.0,0.2704356]
[1769870952056,0.2962021,81267.0,81205.0,0.2704356]
[1769870952347,0.2962021,81265.0,81205.0,0.2704356]
[1769870952546,0.2962021,81263.0,81205.0,0.2704356]
[1769870952742,0.2962021,81261.0,81205.0,0.2704356]
[1769870952938,0.2962021,81259.0,81205.0,0.2704356]
[1769870953142,0.2962021,81257.0,81205.0,0.2704356]
[1769870953343,0.2962021,81255.0,81205.0,0.2704356]
[1769870953639,0.2962021,81253.0,81205.0,0.2704356]
[1769870953847,0.2962021,81251.0,81205.0,0.2704356]
[1769870954052,0.2962021,81249.0,81205.0,0.2704356]
[1769870954250,0.0001033,81248.0,81205.0,0.2704356]
[1769870954554,0.2962021,81247.0,81202.0,0.0998]
[1769870955241,0.2962021,81245.0,81202.0,0.0998]
[1769870955436,0.2962021,81243.0,81202.0,0.0998]
[1769870955642,0.2962021,81241.0,81194.0,0.2704356]
[1769870955841,0.2962021,81239.0,81194.0,0.2704356]
[1769870956142,0.2962021,81237.0,81194.0,0.2704356]
[1769870956747,0.2962021,81237.0,81195.0,0.3702756]
[1769870956950,0.12311859,81236.0,81196.0,0.2704356]
[1769870957447,0.2962021,81235.0,81196.0,0.2704356]
[1769870958151,0.4193313,81234.0,81196.0,0.2704356]
[1769870958646,0.2962021,81234.0,81196.0,0.2704356]
[1769870958840,0.2962021,81232.0,81196.0,0.2704356]
[1769870959249,0.12323465,81233.0,81198.0,0.2704356]
[1769870959250,0.00010545,81233.0,81198.0,0.2704356]
[1769870959951,0.00010545,81233.0,81200.0,0.2704356]